fUST/lending_fUST_20250219
["ID","MTS","AMOUNT","RATE_DAILY","PERIOD"]
[353523165,1739897443085,-516.99796658,0.0001378,2]
[353523167,1739897443095,-500.0,0.0001378,2]
[353523169,1739897443104,-500.0,0.0001378,2]
[353523171,1739897443114,-500.0,0.0001378,2]
[353523173,1739897443123,-500.0,0.0001378,2]
[353523175,1739897443132,-500.0,0.0001378,2]
[353523177,1739897443142,-500.0,0.0001378,2]
[353523179,1739897443152,-500.0,0.0001378,2]
[353523181,1739897443163,-500.0,0.0001378,2]
[353523183,1739897443172,-500.0,0.0001378,2]
[353523185,1739897443181,-500.0,0.0001378,2]
[353523187,1739897443191,-500.0,0.0001378,2]
[353523189,1739897443200,-500.0,0.0001378,2]
[353523191,1739897443210,-500.0,0.0001378,2]
[353523193,1739897443218,-501.10419538,0.0001378,2]
[353523195,1739897443228,-500.0,0.0001378,2]
[353523197,1739897443237,-500.0,0.0001378,2]
[353523199,1739897443246,-500.0,0.0001378,2]
[353523201,1739897443255,-500.0,0.0001378,2]
[353523203,1739897443265,-500.0,0.0001378,2]
[353523205,1739897443275,-500.0,0.0001378,2]
[353523207,1739897443284,-500.0,0.0001378,2]
[353523209,1739897443293,-500.0,0.0001378,2]
[353523211,1739897443302,-215.34,0.0001378,2]
[353523213,1739897443311,-500.0,0.0001378,2]
[353523215,1739897443322,-500.0,0.0001378,2]
[353523217,1739897443331,-500.0,0.0001378,2]
[353523219,1739897443344,-500.0,0.0001378,2]
[353523221,1739897443354,-500.0,0.0001378,2]
[353523223,1739897443363,-500.0,0.0001378,2]
[353523225,1739897443372,-503.62336403,0.0001378,2]
[353523227,1739897443382,-500.0,0.0001378,2]
[353523229,1739897443393,-500.0,0.0001378,2]
[353523231,1739897443402,-500.0,0.0001378,2]
[353523233,1739897443413,-406.85361087,0.0001378,2]
[353523235,1739897443422,-500.0,0.0001378,2]
[353523237,1739897443432,-503.74861346,0.0001378,2]
[353523239,1739897443441,-500.0,0.0001378,2]
[353523241,1739897443450,-500.0,0.0001378,2]
[353523243,1739897443460,-500.0,0.0001378,2]
[353523245,1739897443469,-500.0,0.0001378,2]
[353523247,1739897443479,-500.0,0.0001378,2]
[353523249,1739897443488,-500.0,0.0001378,2]
[353523251,1739897443497,-500.0,0.0001378,2]
[353523253,1739897443507,-501.50324051,0.0001378,2]
[353523255,1739897443516,-1433.55,0.0001378,2]
[353523258,1739897443525,-500.0,0.0001378,2]
[353523261,1739897443534,-500.0,0.0001378,2]
[353523264,1739897443544,-502.26640478,0.0001378,2]
[353523267,1739897443554,-500.0,0.0001378,2]
[353523282,1739897443626,-502.52396816,0.0001378,2]
[353523284,1739897443643,-749.6,0.0001378,2]
[353523286,1739897443653,-569.51056396,0.0001378,2]
[353523289,1739897443663,-500.0,0.0001378,2]
[353523291,1739897443674,-500.0,0.0001378,2]
[353523293,1739897443683,-500.0,0.0001378,2]
[353523295,1739897443692,-500.0,0.0001378,2]
[353523297,1739897443702,-500.0,0.0001378,2]
[353523298,1739897443711,-500.0,0.0001378,2]
[353523301,1739897443721,-500.0,0.0001378,2]
[353523303,1739897443730,-4630.33,0.0001378,2]
[353523305,1739897443740,-500.0,0.0001378,2]
[353523307,1739897443749,-500.0,0.0001378,2]
[353523309,1739897443759,-501.22472776,0.0001378,2]
[353523311,1739897443769,-1836.19,0.0001378,2]
[353523313,1739897443778,-500.0,0.0001378,2]
[353523315,1739897443787,-500.0,0.0001378,2]
[353523317,1739897443797,-500.0,0.0001378,2]
[353523319,1739897443807,-500.0,0.0001378,2]
[353523321,1739897443816,-855.17,0.0001378,2]
[353523323,1739897443827,-500.0,0.0001378,2]
[353523325,1739897443836,-500.0,0.0001378,2]
[353523327,1739897443845,-500.0,0.0001378,2]
[353523329,1739897443855,-500.0,0.0001378,2]
[353523331,1739897443864,-500.0,0.0001378,2]
[353523333,1739897443874,-500.0,0.0001378,2]
[353523335,1739897443883,-583.31,0.0001378,2]
[353523337,1739897443893,-502.88333331,0.0001378,2]
[353523339,1739897443902,-500.0,0.0001378,2]
[353523341,1739897443912,-504.73967674,0.0001378,2]
[353523343,1739897443921,-500.0,0.0001378,2]
[353523345,1739897443931,-500.0,0.0001378,2]
[353523347,1739897443940,-368.5386958,0.0001378,2]
[353523349,1739897443950,-500.0,0.0001378,2]
[353523350,1739897443959,-500.0,0.0001378,2]
[353523351,1739897443968,-500.0,0.0001378,2]
[353523352,1739897443978,-500.0,0.0001378,2]
[353523353,1739897443987,-1389.19,0.0001378,2]
[353523354,1739897443996,-500.0,0.0001378,2]
[353523355,1739897444005,-500.0,0.0001378,2]
[353523356,1739897444014,-500.0,0.0001378,2]
[353523357,1739897444023,-500.0,0.0001378,2]
[353523358,1739897444032,-500.0,0.0001378,2]
[353523359,1739897444042,-3186.79,0.0001378,2]
[353523360,1739897444051,-500.0,0.0001378,2]
[353523361,1739897444061,-692.41,0.0001378,2]
[353523362,1739897444070,-500.0,0.0001378,2]
[353523363,1739897444079,-500.0,0.0001378,2]
[353523364,1739897444088,-500.0,0.0001378,2]
[353523365,1739897444098,-564.78,0.0001378,2]
[353523367,1739897444108,-500.0,0.0001378,2]
[353523369,1739897444117,-1303.57,0.0001378,2]
[353523371,1739897444127,-991.86,0.0001378,2]
[353523373,1739897444136,-500.0,0.0001378,2]
[353523375,1739897444145,-500.0,0.0001378,2]
[353523377,1739897444154,-500.0,0.0001378,2]
[353523379,1739897444164,-500.0,0.0001378,2]
[353523381,1739897444173,-500.0,0.0001378,2]
[353523383,1739897444183,-1423.23,0.0001378,2]
[353523385,1739897444192,-500.0,0.0001378,2]
[353523387,1739897444202,-6758.46,0.0001378,2]
[353523389,1739897444211,-14917.53,0.0001378,2]
[353523391,1739897444220,-500.0,0.0001378,2]
[353523393,1739897444229,-500.0,0.0001378,2]
[353523395,1739897444239,-500.0,0.0001378,2]
[353523397,1739897444248,-500.0,0.0001378,2]
[353523399,1739897444257,-1025.9,0.0001378,2]
[353523401,1739897444267,-372.89121801,0.0001378,2]
[353523403,1739897444276,-500.0,0.0001378,2]
[353523405,1739897444285,-500.0,0.0001378,2]
[353523407,1739897444295,-500.0,0.0001378,2]
[353523409,1739897444304,-531.27983975,0.0001378,2]
[353523411,1739897444313,-500.0,0.0001378,2]
[353523413,1739897444325,-500.0,0.0001378,2]
[353523415,1739897444334,-500.0,0.0001378,2]
[353523417,1739897444343,-303.05359154,0.0001378,2]
[353523419,1739897444353,-500.0,0.0001378,2]
[353523421,1739897444362,-893.42,0.0001378,2]
[353523423,1739897444373,-500.0,0.0001378,2]
[353523425,1739897444383,-192.69,0.0001378,2]
[353523427,1739897444392,-1265.43,0.0001378,2]
[353523429,1739897444402,-500.0,0.0001378,2]
[353523430,1739897444411,-500.0,0.0001378,2]
[353523433,1739897444422,-2630.2,0.0001378,2]
[353523435,1739897444431,-500.0,0.0001378,2]
[353523437,1739897444441,-500.0,0.0001378,2]
[353523438,1739897444450,-726.99,0.0001378,2]
[353523440,1739897444459,-500.0,0.0001378,2]
[353523442,1739897444469,-500.0,0.0001378,2]
[353523444,1739897444478,-721.74,0.0001378,2]
[353523446,1739897444487,-500.0,0.0001378,2]
[353523449,1739897444497,-500.0,0.0001378,2]
[353523451,1739897444506,-638.2,0.0001378,2]
[353523452,1739897444515,-500.0,0.0001378,2]
[353523455,1739897444525,-500.0,0.0001378,2]
[353523457,1739897444534,-306.345728,0.000138,2]
[353523458,1739897444543,-156.0880938,0.000138,2]
[353523460,1739897444553,-215.9231093,0.000138,2]
[353523462,1739897444562,-204362.10653557,0.00013862,2]
[353523464,1739897444572,-500.0,0.00013863,2]
[353523466,1739897444582,-500.0,0.00013863,2]
[353523468,1739897444592,-344.80852237,0.00013863,2]
[353523470,1739897444602,-500.0,0.00013863,2]
[353523472,1739897444611,-500.0,0.00013863,2]
[353523474,1739897444621,-500.0,0.00013863,2]
[353523476,1739897444632,-1174.94,0.00013863,2]
[353523478,1739897444641,-500.0,0.00013863,2]
[353523480,1739897444651,-500.0,0.00013863,2]
[353523482,1739897444660,-500.0,0.00013863,2]
[353523484,1739897444670,-500.0,0.00013863,2]
[353523486,1739897444680,-500.0,0.00013863,2]
[353523488,1739897444689,-500.0,0.00013863,2]
[353523490,1739897444698,-500.0,0.00013863,2]
[353523492,1739897444708,-500.0,0.00013863,2]
[353523494,1739897444717,-261.31716949,0.00013863,2]
[353523497,1739897444727,-500.0,0.00013863,2]
[353523499,1739897444737,-500.0,0.00013863,2]
[353523501,1739897444746,-256.45737761,0.00013863,2]
[353523503,1739897444756,-500.0,0.00013863,2]
[353523505,1739897444765,-500.0,0.00013863,2]
[353523507,1739897444777,-500.0,0.00013863,2]
[353523509,1739897444786,-553.42,0.00013863,2]
[353523511,1739897444795,-531.63,0.00013863,2]
[353523513,1739897444805,-500.0,0.00013863,2]
[353523515,1739897444814,-274.07904968,0.00013863,2]
[353523517,1739897444824,-500.0,0.00013863,2]
[353523518,1739897444833,-197.66456261,0.00013863,2]
[353523520,1739897444842,-841.33,0.00013863,2]
[353523522,1739897444852,-500.0,0.00013863,2]
[353523525,1739897444863,-500.0,0.00013863,2]
[353523527,1739897444873,-500.0,0.00013863,2]
[353523529,1739897444882,-500.0,0.00013863,2]
[353523531,1739897444891,-502.66102143,0.00013863,2]
[353523533,1739897444901,-500.0,0.00013863,2]
[353523535,1739897444910,-500.0,0.00013863,2]
[353523537,1739897444920,-500.0,0.00013863,2]
[353523538,1739897444929,-500.0,0.00013863,2]
[353523540,1739897444938,-500.0,0.00013863,2]
[353523543,1739897444948,-500.0,0.00013863,2]
[353523545,1739897444959,-500.0,0.00013863,2]
[353523547,1739897444969,-500.0,0.00013863,2]
[353523549,1739897444979,-500.0,0.00013863,2]
[353523551,1739897444988,-500.0,0.00013863,2]
[353523553,1739897444997,-500.0,0.00013863,2]
[353523555,1739897445007,-500.0,0.00013863,2]
[353523557,1739897445017,-500.0,0.00013863,2]
[353523559,1739897445026,-500.0,0.00013863,2]
[353523561,1739897445036,-501.83873759,0.00013863,2]
[353523563,1739897445046,-500.0,0.00013863,2]
[353523565,1739897445056,-500.0,0.00013863,2]
[353523567,1739897445066,-500.0,0.00013863,2]
[353523569,1739897445075,-500.0,0.00013863,2]
[353523571,1739897445085,-500.0,0.00013863,2]
[353523573,1739897445094,-500.0,0.00013863,2]
[353523575,1739897445103,-319.67450216,0.00013863,2]
[353523577,1739897445113,-500.0,0.00013863,2]
[353523579,1739897445122,-500.0,0.00013863,2]
[353523581,1739897445131,-500.0,0.00013863,2]
[353523583,1739897445140,-500.0,0.00013863,2]
[353523585,1739897445150,-500.0,0.00013863,2]
[353523587,1739897445159,-403.69222362,0.00013863,2]
[353523589,1739897445168,-500.0,0.00013863,2]
[353523591,1739897445177,-500.0,0.00013863,2]
[353523593,1739897445187,-500.0,0.00013863,2]
[353523595,1739897445196,-1433.55,0.00013863,2]
[353523597,1739897445206,-306.462855,0.00013863,2]
[353523599,1739897445216,-500.0,0.00013863,2]
[353523601,1739897445227,-749.6,0.00013863,2]
[353523603,1739897445236,-500.0,0.00013863,2]
[353523605,1739897445246,-500.0,0.00013863,2]
[353523607,1739897445255,-500.0,0.00013863,2]
[353523609,1739897445267,-500.0,0.00013863,2]
[353523617,1739897445348,-500.0,0.00013863,2]
[353523619,1739897445358,-572.71719466,0.00013863,2]
[353523621,1739897445368,-4630.33,0.00013863,2]
[353523623,1739897445377,-502.80241968,0.00013863,2]
[353523625,1739897445388,-500.0,0.00013863,2]
[353523628,1739897445399,-1836.19,0.00013863,2]
[353523630,1739897445409,-500.0,0.00013863,2]
[353523632,1739897445421,-500.0,0.00013863,2]
[353523634,1739897445430,-452.85473752,0.00013863,2]
[353523636,1739897445440,-855.17,0.00013863,2]
[353523638,1739897445449,-500.0,0.00013863,2]
[353523640,1739897445458,-500.0,0.00013863,2]
[353523642,1739897445468,-500.0,0.00013863,2]
[353523644,1739897445477,-500.0,0.00013863,2]
[353523646,1739897445487,-500.0,0.00013863,2]
[353523648,1739897445497,-583.31,0.00013863,2]
[353523650,1739897445506,-500.0,0.00013863,2]
[353523652,1739897445516,-500.0,0.00013863,2]
[353523654,1739897445526,-500.0,0.00013863,2]
[353523656,1739897445536,-500.0,0.00013863,2]
[353523658,1739897445546,-500.0,0.00013863,2]
[353523661,1739897445555,-1389.19,0.00013863,2]
[353523663,1739897445565,-500.0,0.00013863,2]
[353523666,1739897445575,-3186.79,0.00013863,2]
[353523669,1739897445585,-648.71202474,0.00013863,2]
[353523671,1739897445596,-692.41,0.00013863,2]
[353523673,1739897445606,-584.16711782,0.00013863,2]
[353523676,1739897445616,-500.0,0.00013863,2]
[353523679,1739897445625,-500.0,0.00013863,2]
[353523682,1739897445635,-564.78,0.00013863,2]
[353523685,1739897445644,-500.0,0.00013863,2]
[353523688,1739897445653,-1303.57,0.00013863,2]
[353523691,1739897445663,-991.86,0.00013863,2]
[353523695,1739897445672,-500.0,0.00013863,2]
[353523699,1739897445681,-500.0,0.00013863,2]
[353523703,1739897445692,-500.0,0.00013863,2]
[353523705,1739897445702,-500.0,0.00013863,2]
[353523708,1739897445711,-1423.23,0.00013863,2]
[353523710,1739897445720,-6758.46,0.00013863,2]
[353523712,1739897445729,-14917.53,0.00013863,2]
[353523714,1739897445739,-500.0,0.00013863,2]
[353523716,1739897445749,-500.0,0.00013863,2]
[353523718,1739897445759,-1025.9,0.00013863,2]
[353523720,1739897445768,-500.0,0.00013863,2]
[353523722,1739897445778,-500.0,0.00013863,2]
[353523724,1739897445787,-500.0,0.00013863,2]
[353523726,1739897445797,-500.0,0.00013863,2]
[353523728,1739897445806,-500.0,0.00013863,2]
[353523730,1739897445815,-500.0,0.00013863,2]
[353523733,1739897445826,-893.42,0.00013863,2]
[353523735,1739897445835,-1265.43,0.00013863,2]
[353523737,1739897445844,-500.0,0.00013863,2]
[353523739,1739897445854,-2630.2,0.00013863,2]
[353523741,1739897445863,-500.0,0.00013863,2]
[353523743,1739897445874,-726.99,0.00013863,2]
[353523745,1739897445883,-500.0,0.00013863,2]
[353523747,1739897445892,-500.0,0.00013863,2]
[353523749,1739897445902,-721.74,0.00013863,2]
[353523751,1739897445911,-506.84125293,0.00013863,2]
[353523753,1739897445919,-638.2,0.00013863,2]
[353523754,1739897445928,-500.0,0.00013863,2]
[353523756,1739897445938,-500.0,0.00013863,2]
[353523758,1739897445948,-500.0,0.00013873,2]
[353523760,1739897445957,-500.0,0.00013873,2]
[353523763,1739897445966,-500.0,0.00013873,2]
[353523764,1739897445976,-161.081112,0.00013908,2]
[353523767,1739897445986,-500.0,0.00013945,2]
[353523769,1739897445996,-500.0,0.00013945,2]
[353523771,1739897446005,-500.0,0.00013945,2]
[353523772,1739897446015,-500.0,0.00013945,2]
[353523775,1739897446025,-1174.94,0.00013945,2]
[353523776,1739897446034,-500.0,0.00013945,2]
[353523778,1739897446043,-500.0,0.00013945,2]
[353523780,1739897446053,-500.0,0.00013945,2]
[353523783,1739897446062,-500.0,0.00013945,2]
[353523784,1739897446072,-500.0,0.00013945,2]
[353523786,1739897446081,-500.0,0.00013945,2]
[353523789,1739897446091,-196.656108,0.00013945,2]
[353523791,1739897446100,-500.0,0.00013945,2]
[353523793,1739897446110,-500.0,0.00013945,2]
[353523795,1739897446120,-500.0,0.00013945,2]
[353523797,1739897446129,-500.0,0.00013945,2]
[353523799,1739897446138,-500.0,0.00013945,2]
[353523801,1739897446148,-500.0,0.00013945,2]
[353523803,1739897446158,-553.42,0.00013945,2]
[353523805,1739897446167,-500.0,0.00013945,2]
[353523807,1739897446177,-500.0,0.00013945,2]
[353523809,1739897446187,-841.33,0.00013945,2]
[353523811,1739897446197,-500.0,0.00013945,2]
[353523813,1739897446207,-500.0,0.00013945,2]
[353523815,1739897446217,-500.0,0.00013945,2]
[353523817,1739897446227,-500.0,0.00013945,2]
[353523819,1739897446236,-500.0,0.00013945,2]
[353523821,1739897446245,-500.0,0.00013945,2]
[353523823,1739897446254,-500.0,0.00013945,2]
[353523825,1739897446263,-500.0,0.00013945,2]
[353523827,1739897446273,-500.0,0.00013945,2]
[353523829,1739897446282,-500.0,0.00013945,2]
[353523831,1739897446292,-500.0,0.00013945,2]
[353523833,1739897446301,-504.72752434,0.00013945,2]
[353523835,1739897446311,-500.0,0.00013945,2]
[353523837,1739897446320,-500.0,0.00013945,2]
[353523839,1739897446334,-500.0,0.00013945,2]
[353523841,1739897446343,-500.0,0.00013945,2]
[353523843,1739897446352,-500.0,0.00013945,2]
[353523845,1739897446362,-500.0,0.00013945,2]
[353523847,1739897446371,-500.0,0.00013945,2]
[353523849,1739897446381,-500.0,0.00013945,2]
[353523851,1739897446390,-500.0,0.00013945,2]
[353523853,1739897446399,-286.50419672,0.00013945,2]
[353523855,1739897446410,-500.0,0.00013945,2]
[353523857,1739897446419,-500.0,0.00013945,2]
[353523859,1739897446428,-500.0,0.00013945,2]
[353523861,1739897446437,-500.0,0.00013945,2]
[353523863,1739897446446,-1433.55,0.00013945,2]
[353523865,1739897446456,-567.37,0.00013945,2]
[353523867,1739897446465,-749.6,0.00013945,2]
[353523869,1739897446474,-500.0,0.00013945,2]
[353523871,1739897446484,-500.0,0.00013945,2]
[353523873,1739897446493,-523.3,0.00013945,2]
[353523875,1739897446503,-500.0,0.00013945,2]
[353523877,1739897446513,-500.0,0.00013945,2]
[353523879,1739897446522,-4630.33,0.00013945,2]
[353523881,1739897446546,-500.0,0.00013945,2]
[353523883,1739897446556,-1836.19,0.00013945,2]
[353523885,1739897446566,-500.0,0.00013945,2]
[353523887,1739897446575,-500.0,0.00013945,2]
[353523889,1739897446584,-855.17,0.00013945,2]
[353523891,1739897446593,-500.0,0.00013945,2]
[353523893,1739897446602,-510.83014643,0.00013945,2]
[353523895,1739897446612,-500.0,0.00013945,2]
[353523897,1739897446621,-338.11164495,0.00013945,2]
[353523899,1739897446631,-500.0,0.00013945,2]
[353523901,1739897446640,-583.31,0.00013945,2]
[353523903,1739897446650,-500.0,0.00013945,2]
[353523905,1739897446659,-500.0,0.00013945,2]
[353523907,1739897446669,-500.0,0.00013945,2]
[353523909,1739897446678,-530.33590695,0.00013945,2]
[353523911,1739897446687,-500.0,0.00013945,2]
[353523913,1739897446696,-1389.19,0.00013945,2]
[353523915,1739897446705,-500.0,0.00013945,2]
[353523917,1739897446714,-151.0,0.00013945,2]
[353523919,1739897446724,-3186.79,0.00013945,2]
[353523921,1739897446733,-151.0,0.00013945,2]
[353523923,1739897446743,-692.41,0.00013945,2]
[353523925,1739897446752,-500.0,0.00013945,2]
[353523927,1739897446762,-564.78,0.00013945,2]
[353523929,1739897446771,-500.0,0.00013945,2]
[353523931,1739897446781,-1303.57,0.00013945,2]
[353523933,1739897446790,-991.86,0.00013945,2]
[353523935,1739897446800,-518.57079483,0.00013945,2]
[353523937,1739897446809,-500.0,0.00013945,2]
[353523939,1739897446818,-1423.23,0.00013945,2]
[353523941,1739897446828,-151.0,0.00013945,2]
[353523943,1739897446836,-6758.46,0.00013945,2]
[353523945,1739897446846,-14917.53,0.00013945,2]
[353523947,1739897446857,-643.2385204,0.00013945,2]
[353523949,1739897446867,-1025.9,0.00013945,2]
[353523958,1739897446944,-500.0,0.00013945,2]
[353523960,1739897446954,-418.7692,0.00013945,2]
[353523962,1739897446963,-500.0,0.00013945,2]
[353523964,1739897446973,-500.0,0.00013945,2]
[353523966,1739897446982,-500.0,0.00013945,2]
[353523968,1739897446991,-500.0,0.00013945,2]
[353523970,1739897447001,-893.42,0.00013945,2]
[353523972,1739897447011,-1265.43,0.00013945,2]
[353523974,1739897447020,-2630.2,0.00013945,2]
[353523976,1739897447030,-500.0,0.00013945,2]
[353523978,1739897447039,-726.99,0.00013945,2]
[353523980,1739897447049,-500.0,0.00013945,2]
[353523982,1739897447058,-500.0,0.00013945,2]
[353523984,1739897447067,-721.74,0.00013945,2]
[353523986,1739897447076,-638.2,0.00013945,2]
[353523988,1739897447086,-500.0,0.00013945,2]
[353523990,1739897447095,-500.0,0.00013945,2]
[353523992,1739897447105,-166.160499,0.00014,2]
[353523994,1739897447114,-161.081112,0.00014,2]
[353523996,1739897447124,-500.0,0.00014027,2]
[353523998,1739897447133,-1174.94,0.00014027,2]
[353524000,1739897447142,-500.0,0.00014027,2]
[353524002,1739897447152,-500.0,0.00014027,2]
[353524003,1739897447161,-500.0,0.00014027,2]
[353524004,1739897447171,-500.0,0.00014027,2]
[353524005,1739897447180,-500.0,0.00014027,2]
[353524006,1739897447189,-441.25,0.00014027,2]
[353524007,1739897447199,-500.0,0.00014027,2]
[353524008,1739897447208,-500.0,0.00014027,2]
[353524009,1739897447217,-497.39,0.00014027,2]
[353524010,1739897447227,-500.0,0.00014027,2]
[353524011,1739897447236,-500.0,0.00014027,2]
[353524012,1739897447246,-500.0,0.00014027,2]
[353524013,1739897447255,-553.42,0.00014027,2]
[353524014,1739897447265,-500.0,0.00014027,2]
[353524015,1739897447274,-500.0,0.00014027,2]
[353524016,1739897447284,-841.33,0.00014027,2]
[353524017,1739897447294,-500.0,0.00014027,2]
[353524018,1739897447303,-500.0,0.00014027,2]
[353524020,1739897447313,-500.0,0.00014027,2]
[353524022,1739897447324,-500.0,0.00014027,2]
[353524024,1739897447335,-500.0,0.00014027,2]
[353524026,1739897447349,-500.0,0.00014027,2]
[353524028,1739897447359,-500.0,0.00014027,2]
[353524030,1739897447368,-500.0,0.00014027,2]
[353524032,1739897447378,-500.0,0.00014027,2]
[353524034,1739897447387,-613.16065261,0.00014027,2]
[353524036,1739897447397,-500.0,0.00014027,2]
[353524038,1739897447407,-500.0,0.00014027,2]
[353524040,1739897447417,-500.0,0.00014027,2]
[353524043,1739897447427,-500.0,0.00014027,2]
[353524045,1739897447436,-500.0,0.00014027,2]
[353524047,1739897447446,-500.0,0.00014027,2]
[353524049,1739897447455,-500.0,0.00014027,2]
[353524051,1739897447465,-500.0,0.00014027,2]
[353524053,1739897447474,-500.0,0.00014027,2]
[353524055,1739897447484,-500.0,0.00014027,2]
[353524057,1739897447495,-500.0,0.00014027,2]
[353524059,1739897447506,-500.0,0.00014027,2]
[353524061,1739897447515,-500.0,0.00014027,2]
[353524063,1739897447525,-500.0,0.00014027,2]
[353524065,1739897447535,-1433.55,0.00014027,2]
[353524067,1739897447544,-749.6,0.00014027,2]
[353524069,1739897447554,-500.0,0.00014027,2]
[353524071,1739897447563,-500.0,0.00014027,2]
[353524073,1739897447572,-500.0,0.00014027,2]
[353524075,1739897447582,-500.0,0.00014027,2]
[353524077,1739897447591,-4630.33,0.00014027,2]
[353524079,1739897447601,-500.0,0.00014027,2]
[353524081,1739897447611,-1836.19,0.00014027,2]
[353524083,1739897447622,-500.0,0.00014027,2]
[353524085,1739897447631,-500.0,0.00014027,2]
[353524087,1739897447641,-855.17,0.00014027,2]
[353524089,1739897447651,-500.0,0.00014027,2]
[353524091,1739897447661,-500.0,0.00014027,2]
[353524093,1739897447671,-500.0,0.00014027,2]
[353524095,1739897447680,-583.31,0.00014027,2]
[353524097,1739897447690,-500.0,0.00014027,2]
[353524099,1739897447700,-500.0,0.00014027,2]
[353524101,1739897447710,-500.0,0.00014027,2]
[353524103,1739897447721,-500.0,0.00014027,2]
[353524105,1739897447731,-1389.19,0.00014027,2]
[353524107,1739897447740,-167.74,0.00014027,2]
[353524109,1739897447751,-3186.79,0.00014027,2]
[353524110,1739897447761,-692.41,0.00014027,2]
[353524113,1739897447771,-500.0,0.00014027,2]
[353524115,1739897447781,-564.78,0.00014027,2]
[353524117,1739897447790,-500.0,0.00014027,2]
[353524119,1739897447801,-1303.57,0.00014027,2]
[353524121,1739897447810,-991.86,0.00014027,2]
[353524123,1739897447820,-500.0,0.00014027,2]
[353524125,1739897447830,-1423.23,0.00014027,2]
[353524127,1739897447839,-6758.46,0.00014027,2]
[353524129,1739897447849,-14917.53,0.00014027,2]
[353524131,1739897447859,-1025.9,0.00014027,2]
[353524133,1739897447868,-500.0,0.00014027,2]
[353524135,1739897447878,-500.0,0.00014027,2]
[353524137,1739897447889,-500.0,0.00014027,2]
[353524139,1739897447898,-500.0,0.00014027,2]
[353524141,1739897447908,-500.0,0.00014027,2]
[353524143,1739897447918,-893.42,0.00014027,2]
[353524145,1739897447927,-1265.43,0.00014027,2]
[353524147,1739897447936,-2630.2,0.00014027,2]
[353524149,1739897447946,-500.0,0.00014027,2]
[353524151,1739897447956,-726.99,0.00014027,2]
[353524153,1739897447965,-629.01,0.00014027,2]
[353524155,1739897447974,-500.0,0.00014027,2]
[353524157,1739897447984,-721.74,0.00014027,2]
[353524159,1739897447993,-638.2,0.00014027,2]
[353524161,1739897448002,-500.0,0.00014027,2]
[353524163,1739897448012,-500.0,0.00014109,2]
[353524165,1739897448021,-1174.94,0.00014109,2]
[353524167,1739897448031,-500.0,0.00014109,2]
[353524168,1739897448040,-500.0,0.00014109,2]
[353524171,1739897448054,-500.0,0.00014109,2]
[353524173,1739897448064,-500.0,0.00014109,2]
[353524174,1739897448074,-500.0,0.00014109,2]
[353524177,1739897448085,-500.0,0.00014109,2]
[353524179,1739897448097,-500.0,0.00014109,2]
[353524181,1739897448108,-500.0,0.00014109,2]